Cogmind - Beta 17 @@@ ROGUE MODE // 2026.06.25 @ 21:47:46 Player: Cinder Result: Destroyed by Y-72 Warden with Quantum Rifle Performance ------------- Evolutions (9) 4500 Regions Visited (19) 3800 Robots Destroyed (31) 155 Value Destroyed (1112) 1112 Prototype IDs (38) 760 Alien Tech Used (0) 0 Bonus (4000) 4000 TOTAL SCORE: 14327 Bonus ------- Pacifist 200 Entered DSFs 500 Aligned with FarCom 300 Met Warlord at Base 500 MAIN.C Attacked Warlord 500 Met Warlord at Research 2000 Cogmind --------- Core Integrity 0/1600 Matter 270/300 Energy 93/100 System Corruption 3% Temperature Cool (18) Movement Core (50) Location -1/Access Parts ------- > --- POWER (2) -------- (None) > --- PROPULSION (6) --- (None) > --- UTILITY (14) ----- Experimental Terrain Scan Processor > --- WEAPON (3) ------- (None) > --- INVENTORY (5) ---- Quantum Reactor Matter Compressor (250) Peak State ------------ > --- POWER ------------ Light Angular Momentum Engine Light Quantum Reactor > --- PROPULSION ------- Flying Fortress v7 Impulse Thruster Array > --- UTILITY ---------- Medium Storage Unit Enhanced Optical Array Advanced Melee Analysis Suite Microactuators Advanced Transmission Jammer ECM Suite Advanced Reaction Control System Advanced EM Shield Improved Hacking Suite Makeshift System Shield Improved System Shield Advanced System Shield > --- WEAPON ----------- Makeshift Axe Makeshift Axe Heavy Pick > --- INVENTORY -------- Fission Core Light Particle Reactor Nuclear Pulse Thruster Field Propulsion Drive Impulse Thruster Array Advanced Heat Sink Matter Compressor Advanced Reaction Control System Improved Hacking Suite [Rating: 139] Favorites ----------- Power Angular Momentum Engine Engine Angular Momentum Engine Power Core Light Nuclear Core Reactor Light Quantum Reactor Propulsion Flying Fortress v7 Treads Advanced Heavy Siege Treads Leg Experimental Biometal Leg Wheel Centrium Wheel Hover Unit Experimental Gyrokinetic Inverter Flight Unit Flying Fortress v7 Utility Medium Storage Unit Device Advanced Reaction Control System Storage Medium Storage Unit Processor Enhanced Optical Array Hackware System Shield Protection Improved Medium Armor Plating Weapon Makeshift Axe Energy Gun Field Laser Energy Cannon Vortex Cannon Ballistic Gun Enhanced Autogun Launcher Improved Grenade Launcher Slashing Weapon Makeshift Axe Piercing Weapon Spear Build | -11 -10 -10 -9 -9 -9 -8 -8 -7 -6 -5 -5 -5 -5 -4 -4 -4 -3 -2 -1 ------- Run | Yrd Mat Min Mat Min Exi Min Mat Fac Fac Fac Upp Upp War Pro Fac DSF Res Res Acc Slots Evolved 18 | . . . 2 . . . 2 2 2 2 . . . . 2 . 2 2 2 Power 1 | . . . . . . . . 1 . . . . . . . . . . . Propulsion 4 | . . . 1 . . . 1 . . 1 . . . . . . . 1 . Utility 12 | . . . 1 . . . 1 1 2 1 . . . . 1 . 2 1 2 Weapon 1 | . . . . . . . . . . . . . . . 1 . . . . Parts Attached 89 | 1 1 . 3 2 . . 12 2 3 9 5 7 2 2 2 . . 24 14 Power 10 | . . . . . . . 1 1 . 2 . 1 . . . . . 3 2 Engine 4 | . . . . . . . 1 . . 1 . 1 . . . . . 1 . Core 3 | . . . . . . . . 1 . 1 . . . . . . . . 1 Reactor 3 | . . . . . . . . . . . . . . . . . . 2 1 Propulsion 21 | . . . . 1 . . 1 . . 1 1 . . . . . . 9 8 Treads 1 | . . . . . . . . . . . . . . . . . . . 1 Leg 1 | . . . . . . . . . . . . . . . . . . . 1 Wheel 2 | . . . . . . . . . . . . . . . . . . . 2 Hover 1 | . . . . . . . . . . . . . . . . . . 1 . Flight 16 | . . . . 1 . . 1 . . 1 1 . . . . . . 8 4 Utility 40 | 1 . . 2 1 . . 8 . 3 3 1 2 . 2 2 . . 11 4 Device 18 | . . . . . . . 2 . 2 1 . 2 . 2 1 . . 5 3 Storage 2 | 1 . . . . . . 1 . . . . . . . . . . . . Processor 9 | . . . 2 1 . . 2 . . 1 1 . . . . . . 1 1 Hackware 7 | . . . . . . . . . 1 . . . . . 1 . . 5 . Protection 4 | . . . . . . . 3 . . 1 . . . . . . . . . Artifact . | . . . . . . . . . . . . . . . . . . . . Weapon 18 | . 1 . 1 . . . 2 1 . 3 3 4 2 . . . . 1 . Energy Gun 4 | . . . . . . . 2 . . 1 . . 1 . . . . . . Energy Cannon 1 | . . . . . . . . . . . . . 1 . . . . . . Ballistic Gun 7 | . 1 . 1 . . . . 1 . 2 1 1 . . . . . . . Ballistic Cannon . | . . . . . . . . . . . . . . . . . . . . Launcher 1 | . . . . . . . . . . . 1 . . . . . . . . Special Weapon . | . . . . . . . . . . . . . . . . . . . . Impact Weapon . | . . . . . . . . . . . . . . . . . . . . Slashing Weapon 3 | . . . . . . . . . . . 1 2 . . . . . . . Piercing Weapon 2 | . . . . . . . . . . . . 1 . . . . . 1 . Special Melee Weapon . | . . . . . . . . . . . . . . . . . . . . Unidentified Prototypes 8 | . . . . . . . . 1 . . . . 2 . . . . 3 2 Parts Lost 44 | . . . . . . . . . . . 1 . . 1 . . 1 18 23 Power 3 | . . . . . . . . . . . . . . . . . . 2 1 Propulsion 17 | . . . . . . . . . . . . . . . . . . 7 10 Utility 20 | . . . . . . . . . . . 1 . . 1 . . . 6 12 Weapon 4 | . . . . . . . . . . . . . . . . . 1 3 . Highest Loss Streak 10 | . . . . . . . . . . . 1 . . 1 . . 1 10 9 To Critical Strikes 1 | . . . . . . . . . . . . . . . . . . . 1 Average Backups 7 | 1 1 2 2 3 3 2 4 7 9 9 10 9 10 9 8 8 9 8 5 Power 1 | . . . . . 1 . . . 1 1 1 1 1 1 2 2 2 2 . Propulsion 1 | . . . . . . 1 . . 1 . 1 1 1 1 1 1 2 2 2 Utility 3 | . . 1 1 1 1 1 2 3 2 4 6 6 7 6 5 5 3 3 1 Weapon 1 | 1 1 1 1 2 . . . 3 4 3 2 1 1 1 . . . . . Tool/Special . | . . . . . . . . . . . . . . . . . . . . Unused Backups 13 | . . . . . 4 . . 1 . 1 . 1 . . . . . 2 4 Power 5 | . . . . . 3 . . . . . . . . . . . . 1 1 Propulsion 2 | . . . . . . . . . . . . . . . . . . 1 1 Utility 5 | . . . . . . . . 1 . 1 . 1 . . . . . . 2 Weapon 1 | . . . . . 1 . . . . . . . . . . . . . . Tool/Special . | . . . . . . . . . . . . . . . . . . . . Average Slot Usage (%) 70 | . 28 14 19 47 55 55 65 75 79 81 81 80 81 82 82 84 83 77 45 Engine 5 | . . . . . . . 6 7 6 3 5 8 11 11 10 10 9 4 . Core 1 | . . . . . . . . 7 6 6 5 1 . . . . . . 1 Flight 9 | . . . . 8 11 11 8 7 6 11 11 11 11 11 10 10 9 10 7 Device 11 | . . . . . . . 6 7 13 11 11 16 17 17 17 15 22 18 5 Storage 3 | . 14 . . . . . . 6 6 5 5 5 5 5 5 5 4 3 3 Processor 11 | . . . 8 28 33 33 16 7 6 10 11 11 11 11 10 10 9 8 11 Hackware 6 | . . . . . . . . . 5 5 5 5 5 5 8 10 9 15 13 Protection 5 | . . . . . . . 11 15 13 11 10 5 5 5 5 5 4 1 . Energy Gun 3 | . . . . . . . 13 15 13 7 . . . . . . . . . Ballistic Gun 2 | . 14 14 11 11 11 11 2 . . 3 8 . . . . . . . . Slashing Weapon 3 | . . . . . . . . . . . 1 4 4 5 8 10 9 6 . Piercing Weapon 1 | . . . . . . . . . . . . 3 5 5 5 5 2 2 . Peak Build Rating 139 | 1 2 1 4 7 10 10 52 57 63 83 84 86 91 89 95 93 104 139 123 Average Rating 73 | . 1 1 2 6 8 10 47 55 61 75 82 83 85 85 92 92 102 116 80 On Entrance 50 | . 1 2 1 4 7 10 10 51 57 63 82 79 86 86 85 92 93 100 97 Avg Prop Armor Cover (%) 8 | . . . . . . . . . . . . . . . . . . 6 10 Naked Turns . | . . . . . . . . . . . . . . . . . . . . Heaviest Build 66 | 5 6 1 3 3 3 3 27 38 40 51 54 54 44 48 51 51 54 66 24 Greatest Support 66 | 3 3 3 3 4 4 4 50 50 50 55 55 54 54 54 54 54 54 66 40 Greatest Overweight (x) 5 | 1 1 . . . . . . . . . . . . . . . . 5 3 Average Overweight (x) . | . 1 . . . . . . . . . . . . . . . . . . Largest Inventory Capacity 10 | 8 8 5 5 5 5 5 10 10 10 10 10 10 10 10 10 10 10 10 10 Average Capacity 8 | 7 8 5 5 5 5 5 5 9 10 10 10 10 10 10 10 10 10 9 9 Most Carried 10 | 2 1 2 3 4 5 5 5 10 10 10 10 10 10 10 9 9 10 10 10 Average Carried 7 | 1 1 2 2 3 4 5 4 7 9 9 9 9 10 9 8 8 9 8 6 Final Capacity 10 | 8 8 5 5 5 5 5 5 10 10 10 10 10 10 10 10 10 10 5 5 Final Carried 10 | 2 1 2 3 4 5 5 5 10 10 10 10 10 10 10 8 9 10 5 2 Class Distribution -------------------- 47% | Mutant 20% | Derelict-Gladiator 12% | Hacker-Gladiator 7% | Hacker-Mutant 5% | Gladiator 4% | Commander-Gladiator Dominant Class ---------------- Mutant | -10/Materials Mutant | -10/Mines Mutant | -9/Materials Mutant | -9/Mines Mutant | -9/Exiles Mutant | -8/Mines Mutant | -8/Materials Mutant | -7/Factory Mutant | -6/Factory Mutant | -5/Factory Mutant | -5/Upper Caves Derelict-Gladiator | -5/Upper Caves Commander-Gladiator | -5/Warlord Gladiator | -4/Proximity Caves Derelict-Gladiator | -4/Factory Derelict-Gladiator | -4/DSF Derelict-Gladiator | -3/Research Hacker-Gladiator | -2/Research Hacker-Mutant | -1/Access Resources | -11 -10 -10 -9 -9 -9 -8 -8 -7 -6 -5 -5 -5 -5 -4 -4 -4 -3 -2 -1 ----------- Run | Yrd Mat Min Mat Min Exi Min Mat Fac Fac Fac Upp Upp War Pro Fac DSF Res Res Acc Matter Collected 1583 | 210 . . 38 48 . 4 95 47 48 . 146 427 52 26 . . 70 267 105 Remotely . | . . . . . . . . . . . . . . . . . . . . Salvage Created 1447 | . . . . 10 . 21 95 47 . 27 105 88 . 54 . . 392 608 . Parts 73 | . . . . 1 . 3 4 1 . 1 7 3 . 4 . . 25 24 . Haulers Intercepted 2 | . . . . . . . . 1 . . . . . . . . . 1 . Recyclers Shooed . | . . . . . . . . . . . . . . . . . . . . Parts Field Recycled . | . . . . . . . . . . . . . . . . . . . . Retrieved Matter . | . . . . . . . . . . . . . . . . . . . . Parts Self-Destructed 10 | . . . . . . . . . . . 6 . . 4 . . . . . Prevented . | . . . . . . . . . . . . . . . . . . . . Parts Restored . | . . . . . . . . . . . . . . . . . . . . Kills | -11 -10 -10 -9 -9 -9 -8 -8 -7 -6 -5 -5 -5 -5 -4 -4 -4 -3 -2 -1 ------- Run | Yrd Mat Min Mat Min Exi Min Mat Fac Fac Fac Upp Upp War Pro Fac DSF Res Res Acc Combat Hostiles Destroyed 16 | . . . . . . . 2 . . . 3 1 . 2 . . 5 3 . Melee 11 | . . . . . . . . . . . . 1 . 2 . . 5 3 . Guns 2 | . . . . . . . 2 . . . . . . . . . . . . AOE 3 | . . . . . . . . . . . 3 . . . . . . . . Classes Destroyed 13 | . . . . 1 . . 2 1 . 1 2 . . . . . 2 4 . Worker 5 | . . . . . . . . . . . . . . . . . . 5 . Builder 1 | . . . . . . . . . . . . . . . . . . 1 . Tunneler 2 | . . . . 1 . 1 . . . . . . . . . . . . . Hauler 2 | . . . . . . . . 1 . . . . . . . . . 1 . Recycler 1 | . . . . . . . . . . . . . . . . . . 1 . Minesweeper 1 | . . . . . . . . . . . 1 . . . . . . . . Operator 1 | . . . . . . . . . . . . . . . . . . 1 . Watcher 2 | . . . . . . . . . . 1 . . . . . . 1 . . Swarmer 5 | . . . . . . . . . . . 3 . . 2 . . . . . Grunt 1 | . . . . . . . 1 . . . . . . . . . . . . Sentry 2 | . . . . . . . 1 . . . . 1 . . . . . . . Hunter 1 | . . . . . . . . . . . . . . . . . 1 . . Programmer 7 | . . . . . . . . . . . . . . . . . 4 3 . Best Kill Streak 9 | . . . . 1 . 1 1 1 . 1 3 1 . 2 . . 2 9 . Combat Bots Only 3 | . . . . . . . 1 . . . 3 1 . 2 . . 2 2 . Max Kills in Single Turn 2 | . . . . 1 . 1 1 1 . 1 2 1 . 1 . . 1 1 . Gunslinging . | . . . . . . . . . . . . . . . . . . . . Exploded 2 | . . . . . . . . . . . 2 . . . . . . . . Melee 1 | . . . . . . . . . . . . 1 . 1 . . 1 1 . Uniques/NPCs Destroyed . | . . . . . . . . . . . . . . . . . . . . Combat | -11 -10 -10 -9 -9 -9 -8 -8 -7 -6 -5 -5 -5 -5 -4 -4 -4 -3 -2 -1 -------- Run | Yrd Mat Min Mat Min Exi Min Mat Fac Fac Fac Upp Upp War Pro Fac DSF Res Res Acc Hostile Shots Fired 600 | . . 4 11 . . 2 15 . 15 3 6 8 17 37 . 2 78 132 270 Missed 266 | . . 1 5 . . . 8 . 8 3 3 5 12 18 . 2 43 47 111 Hits 334 | . . 3 6 . . 2 7 . 7 . 3 3 5 19 . . 35 85 159 Melee 1 | . . . . . . . . . . . . . . . . . . 1 . Projectile 333 | . . 3 6 . . 2 7 . 7 . 3 3 5 19 . . 35 84 159 Critical Strikes 20 | . . . . . . . . . . . . . . . . . 4 6 10 Part Disruptions 2 | . . . . . . . . . . . . . . . . . . 2 . Damage Taken 7684 | . . 38 81 . . 34 96 . 107 . 127 76 97 272 . . 587 2061 4108 Core 2628 | . . 38 69 . . 21 . . 16 . . . 16 40 . . 46 776 1606 Absorbed by Shields 317 | . . . . . . . . . . . . . . 24 . . 184 109 . Redirected to Shielding 100 | . . . . . . . 3 . 33 . 64 . . . . . . . . Regen/Repaired (Parts) 33 | . . . . . . . . . . . . . 33 . . . . . . Core Remaining (%) 89 | 100 . 84 . . . 77 100 100 98 . . . . 94 . 100 96 46 . Volleys Fired 31 | . 2 4 2 2 . 1 5 3 . 4 8 . . . . . . . . Largest 2 | . 1 1 1 1 . 1 2 2 . 2 2 . . . . . . . . Hottest 128 | . 20 20 20 23 . 23 128 128 . 50 50 . . . . . . . . Shots Fired 49 | . 2 4 2 2 . 1 10 6 . 8 14 . . . . . . . . Gun 47 | . 2 4 2 2 . 1 10 6 . 8 12 . . . . . . . . Cannon . | . . . . . . . . . . . . . . . . . . . . Launcher 2 | . . . . . . . . . . . 2 . . . . . . . . Special . | . . . . . . . . . . . . . . . . . . . . Kinetic 31 | . 2 4 2 2 . 1 . . . 8 12 . . . . . . . . Thermal 16 | . . . . . . . 10 6 . . . . . . . . . . . Explosive 2 | . . . . . . . . . . . 2 . . . . . . . . Electromagnetic . | . . . . . . . . . . . . . . . . . . . . Robot Hit Streak 14 | . 2 4 . 4 . 6 14 5 . 7 3 . . . . . . . . Robot Miss Streak 4 | . . 2 4 . . . 1 . . 2 1 . . . . . . . . Penetration Max . | . . . . . . . . . . . . . . . . . . . . Secondary Targets 1 | . . . . . . . 1 . . . . . . . . . . . . Max Gunslinging Chain 1 | . . . . . . . 1 . . . . . . . . . . . . Shots Hit Robots 105 | . 2 2 . 2 . 1 8 5 . 4 7 3 . 3 . . 30 38 . Core Hits 41 | . 1 1 . 1 . 1 4 1 . 2 8 2 . 2 . . 9 9 . Critical Kills . | . . . . . . . . . . . . . . . . . . . . Critical Parts Destroyed . | . . . . . . . . . . . . . . . . . . . . Critical Strikes 11 | . . . . . . . . . . . . 1 . . . . 6 4 . Sever 8 | . . . . . . . . . . . . . . . . . 6 2 . Impale 3 | . . . . . . . . . . . . 1 . . . . . 2 . Melee Attacks 121 | . . . . . . . . . . . 2 4 . 3 . . 45 67 . Impact . | . . . . . . . . . . . . . . . . . . . . Slashing 99 | . . . . . . . . . . . 2 2 . 3 . . 39 53 . Piercing 22 | . . . . . . . . . . . . 2 . . . . 6 14 . Sneak Attacks 12 | . . . . . . . . . . . . . . . . . 1 11 . Combat Hostiles 1 | . . . . . . . . . . . . . . . . . 1 . . Follow-up Attacks 15 | . . . . . . . . . . . . . . . . . 6 9 . Damage Inflicted 4025 | . 18 16 . 33 . 10 117 83 . 69 270 121 . 127 . . 1318 1843 . Guns 461 | . 18 16 . 33 . 10 117 83 . 69 115 . . . . . . . . Cannons . | . . . . . . . . . . . . . . . . . . . . Explosions 155 | . . . . . . . . . . . 155 . . . . . . . . Melee 3409 | . . . . . . . . . . . . 121 . 127 . . 1318 1843 . Ramming . | . . . . . . . . . . . . . . . . . . . . Kinetic 261 | . 18 16 . 33 . 10 . . . 69 115 . . . . . . . . Thermal 200 | . . . . . . . 117 83 . . . . . . . . . . . Explosive 155 | . . . . . . . . . . . 155 . . . . . . . . Electromagnetic . | . . . . . . . . . . . . . . . . . . . . Impact . | . . . . . . . . . . . . . . . . . . . . Slashing 2393 | . . . . . . . . . . . . 38 . 127 . . 1196 1032 . Piercing 1016 | . . . . . . . . . . . . 83 . . . . 122 811 . Highest Corruption 7 | . . . . . . . . . . . . . 1 1 . . 4 7 3 Average Corruption 2 | . . . . . . . . . . . . . 1 1 . . 3 2 2 Corruption Purged 1 | . . . . . . . . . . . . . . . . . . 1 . Corruption Blocked 9 | . . . . . . . . . . . . . . . . . . 3 6 Effects 12 | . . . . . . . . . . . . . . 3 . . 5 4 . Message Errors 3 | . . . . . . . . . . . . . . 2 . . 1 . . Matter Fused 1 | . . . . . . . . . . . . . . 1 . . . . . Heat Flow Errors 3 | . . . . . . . . . . . . . . . . . 1 2 . Energy Discharges 1 | . . . . . . . . . . . . . . . . . . 1 . Data Loss (minor) 3 | . . . . . . . . . . . . . . . . . 2 1 . Data Loss (major) 1 | . . . . . . . . . . . . . . . . . 1 . . Overload Shots . | . . . . . . . . . . . . . . . . . . . . Overflow Damage 480 | . . . . . . . . . . . . . . 21 . . 97 362 . Projectiles . | . . . . . . . . . . . . . . . . . . . . Explosions . | . . . . . . . . . . . . . . . . . . . . Melee 480 | . . . . . . . . . . . . . . 21 . . 97 362 . Knockbacks . | . . . . . . . . . . . . . . . . . . . . Impact . | . . . . . . . . . . . . . . . . . . . . Kinetic . | . . . . . . . . . . . . . . . . . . . . Secondary . | . . . . . . . . . . . . . . . . . . . . Self-Inflicted Damage 79 | . . . . . . . . . . . 79 . . . . . . . . Shots 2 | . . . . . . . . . . . 2 . . . . . . . . Rammed . | . . . . . . . . . . . . . . . . . . . . Targets Rammed . | . . . . . . . . . . . . . . . . . . . . Kicked . | . . . . . . . . . . . . . . . . . . . . Crushed . | . . . . . . . . . . . . . . . . . . . . Highest Temperature 290 | . . . . . . . 259 290 . 50 88 1 . . . . 273 266 8 Average Temperature 100 | . . . . . . . 116 146 . 19 33 1 . . . . 138 130 8 Received Heat Transfer 556 | . . 21 36 . . . 36 . . . . 9 . . . . 49 81 324 Effects 6 | . . . . . . . . . . . . . . . . . 6 . . Interference 6 | . . . . . . . . . . . . . . . . . 6 . . Siege Activations . | . . . . . . . . . . . . . . . . . . . . Martial Activations . | . . . . . . . . . . . . . . . . . . . . Shielding Activations . | . . . . . . . . . . . . . . . . . . . . Robots Disrupted . | . . . . . . . . . . . . . . . . . . . . Combat Hostiles . | . . . . . . . . . . . . . . . . . . . . Robots Corrupted . | . . . . . . . . . . . . . . . . . . . . Combat Hostiles . | . . . . . . . . . . . . . . . . . . . . Parts Fried . | . . . . . . . . . . . . . . . . . . . . Impact Corruptions . | . . . . . . . . . . . . . . . . . . . . Robots Melted . | . . . . . . . . . . . . . . . . . . . . Combat Hostiles . | . . . . . . . . . . . . . . . . . . . . Parts Melted . | . . . . . . . . . . . . . . . . . . . . Heat Transferred 444 | . . . . . . . 259 185 . . . . . . . . . . . Parts Sabotaged . | . . . . . . . . . . . . . . . . . . . . Parts Stolen . | . . . . . . . . . . . . . . . . . . . . Parts Stripped . | . . . . . . . . . . . . . . . . . . . . Power Chain Reactions . | . . . . . . . . . . . . . . . . . . . . Alert | -11 -10 -10 -9 -9 -9 -8 -8 -7 -6 -5 -5 -5 -5 -4 -4 -4 -3 -2 -1 ------- Run | Yrd Mat Min Mat Min Exi Min Mat Fac Fac Fac Upp Upp War Pro Fac DSF Res Res Acc Maximum Alert Level . | . . . . . . . . . . . . . . . . . . . . Low Security (%) 100 | 100 100 100 100 100 . 100 100 100 100 100 . . . . 100 100 100 100 100 Level 1 . | . . . . . . . . . . . . . . . . . . . . Level 2 . | . . . . . . . . . . . . . . . . . . . . Level 3 . | . . . . . . . . . . . . . . . . . . . . Level 4 . | . . . . . . . . . . . . . . . . . . . . Level 5 . | . . . . . . . . . . . . . . . . . . . . High Security . | . . . . . . . . . . . . . . . . . . . . Max Security . | . . . . . . . . . . . . . . . . . . . . Peak Influence 127 | . 14 30 12 5 . 5 31 30 20 12 . . . . 5 . 103 127 94 Initial 51 | . . . 7 . . . . . 9 4 . . . . . . . 51 36 Average 20 | . 1 6 4 . . . 3 1 5 . . . . . 1 . 24 55 32 Influence Increases 1133 | . 14 30 5 5 . 5 51 38 30 22 85 20 . 50 5 . 211 310 252 Destroy 0b10 Robot/C 320 | . . . . . . . 40 . . . 60 20 . 40 . . 100 60 . Destroy 0b10 Robot/NC 80 | . . . . 5 . 5 . 5 . 5 10 . . . . . 5 45 . Destroy Leader 78 | . . . . . . . 10 2 . 2 . . . 10 . . 32 22 . Successful Hack 258 | . 14 . 5 . . . . 30 . . . . . . 5 . 51 96 57 Select Force Hacks 30 | . . . . . . . . . 30 . . . . . . . . . . Disable Machine 15 | . . . . . . . . . . 15 . . . . . . . . . Destroy Structure 22 | . . . . . . . 1 1 . . . . . . . . 8 12 . Partial Spotted 30 | . . . . . . . . . . . . . . . . . 15 . 15 Lose Combat Pursuer 300 | . . 30 . . . . . . . . 15 . . . . . . 75 180 Influence Decreases 1133 | . 14 10 25 . 5 5 51 18 40 20 42 55 20 50 5 . 120 341 312 Entered New Map 135 | . . . 13 . 5 . . . 11 6 5 11 20 . . . . 40 24 Time Decay 746 | . 14 10 12 . . 5 51 18 29 14 27 44 . 40 5 . 110 251 116 Lost Part 252 | . . . . . . . . . . . 10 . . 10 . . 10 50 172 Squads Dispatched 19 | . 1 . 2 . . . 3 1 1 . . . . . . . 3 5 3 Investigation 4 | . . . . . . . 1 . 1 . . . . . . . . 2 . Extermination 3 | . . . . . . . . . . . . . . . . . 2 . 1 Reinforcement 12 | . 1 . 2 . . . 2 1 . . . . . . . . 1 3 2 Assault . | . . . . . . . . . . . . . . . . . . . . Garrison . | . . . . . . . . . . . . . . . . . . . . Intercept . | . . . . . . . . . . . . . . . . . . . . Searches Triggered . | . . . . . . . . . . . . . . . . . . . . Construction Impeded . | . . . . . . . . . . . . . . . . . . . . Haulers Reinforced 2 | . . . . . . . . 1 . . . . . . . . . 1 . Active Scanning Responses . | . . . . . . . . . . . . . . . . . . . . Cargo Convoy Interrupts . | . . . . . . . . . . . . . . . . . . . . Stealth | -11 -10 -10 -9 -9 -9 -8 -8 -7 -6 -5 -5 -5 -5 -4 -4 -4 -3 -2 -1 --------- Run | Yrd Mat Min Mat Min Exi Min Mat Fac Fac Fac Upp Upp War Pro Fac DSF Res Res Acc Distress Signals 16 | . . . 2 . . . 2 . . . . . . . . . 3 5 4 Communications Jammed 2 | . . . . . . . . . . . . . . . . . . . 2 Distress Signals 2 | . . . . . . . . . . . . . . . . . . . 2 Times Spotted 123 | . 1 2 8 . . 1 7 . 2 3 4 1 4 11 . 1 18 23 37 Peak Tracking Total 15 | . 1 2 6 . . 1 4 1 2 2 4 1 3 7 . 1 7 15 12 Tactical Retreats 19 | . . 1 . . . . 1 . . 1 1 . . 3 . . 4 3 5 ECM-based Alert Blocks 24 | . . . . . . . 1 . . 2 . . . 9 . . 11 1 . Traps | -11 -10 -10 -9 -9 -9 -8 -8 -7 -6 -5 -5 -5 -5 -4 -4 -4 -3 -2 -1 ------- Run | Yrd Mat Min Mat Min Exi Min Mat Fac Fac Fac Upp Upp War Pro Fac DSF Res Res Acc Traps Triggered 2 | . 1 . . . . . . . . 1 . . . . . . . . . Indirectly . | . . . . . . . . . . . . . . . . . . . . Trap Hack Attempts . | . . . . . . . . . . . . . . . . . . . . Triggered . | . . . . . . . . . . . . . . . . . . . . Disarmed . | . . . . . . . . . . . . . . . . . . . . Reprogrammed . | . . . . . . . . . . . . . . . . . . . . Reused . | . . . . . . . . . . . . . . . . . . . . Traps Extracted . | . . . . . . . . . . . . . . . . . . . . Installed . | . . . . . . . . . . . . . . . . . . . . Triggered . | . . . . . . . . . . . . . . . . . . . . Machines | -11 -10 -10 -9 -9 -9 -8 -8 -7 -6 -5 -5 -5 -5 -4 -4 -4 -3 -2 -1 ---------- Run | Yrd Mat Min Mat Min Exi Min Mat Fac Fac Fac Upp Upp War Pro Fac DSF Res Res Acc Machines Disabled 1 | . . . . . . . . . . 1 . . . . . . . . . Max in Single Turn 1 | . . . . . . . . . . 1 . . . . . . . . . Garrison Access 3 | . . . . . . . . 1 . 1 . . . . . . . 1 . Machines Repaired . | . . . . . . . . . . . . . . . . . . . . Machines Dismantled . | . . . . . . . . . . . . . . . . . . . . Machines Sabotaged . | . . . . . . . . . . . . . . . . . . . . Overloaded Fab Kills . | . . . . . . . . . . . . . . . . . . . . Hacking | -11 -10 -10 -9 -9 -9 -8 -8 -7 -6 -5 -5 -5 -5 -4 -4 -4 -3 -2 -1 --------- Run | Yrd Mat Min Mat Min Exi Min Mat Fac Fac Fac Upp Upp War Pro Fac DSF Res Res Acc Machines Accessed 39 | . 2 . 2 . 1 . 4 4 2 2 . 1 7 . 2 . 2 7 3 Terminals 22 | . 2 . 2 . . . 3 3 . . . . . . 2 . 2 5 3 Fabricators 2 | . . . . . . . . . 1 1 . . . . . . . . . Repair Stations . | . . . . . . . . . . . . . . . . . . . . Recycling Units 1 | . . . . . . . . . 1 . . . . . . . . . . Scanalyzers 3 | . . . . . . . 1 . . . . . . . . . . 2 . Garrison Access 2 | . . . . . . . . 1 . 1 . . . . . . . . . Total Hacks 108 | . 3 . 7 . 1 . 12 8 4 5 . 1 20 . 2 . 5 31 9 Successful 53 | . 2 . 1 . 1 . 4 3 1 1 . 1 20 . 1 . 3 12 3 Failed 55 | . 1 . 6 . . . 8 5 3 4 . . . . 1 . 2 19 6 Catastrophic 14 | . 1 . 1 . . . . . 1 . . . . . 1 . 1 7 2 Database Lockouts . | . . . . . . . . . . . . . . . . . . . . Manual 56 | . 3 . 7 . 1 . 9 3 4 4 . . 9 . 1 . 2 7 6 Terminals 54 | . 3 . 7 . . . 9 7 . . . . . . 2 . 5 12 9 Fabricators 7 | . . . . . . . . . 3 4 . . . . . . . . . Repair Stations . | . . . . . . . . . . . . . . . . . . . . Recycling Units 1 | . . . . . . . . . 1 . . . . . . . . . . Scanalyzers 22 | . . . . . . . 3 . . . . . . . . . . 19 . Garrison Access 2 | . . . . . . . . 1 . 1 . . . . . . . . . Terminal Hacks 30 | . 1 . . . 1 . . 2 . . . 1 20 . 1 . 1 1 2 Record 15 | . . . . . . . . . . . . . 15 . . . . . . Part Schematic 1 | . 1 . . . . . . . . . . . . . . . . . . Robot Analysis 2 | . . . . . . . . 1 . . . . . . . . . . 1 Prototype ID Bank 4 | . . . . . . . . . . . . . 4 . . . . . . Open Door 2 | . . . . . . . . . . . . 1 1 . . . . . . Open DSF 2 | . . . . . . . . . . . . . . . 1 . . 1 . Level Access Points 1 | . . . . . . . . . . . . . . . . . 1 . . Branch Access Points 2 | . . . . . . . . 1 . . . . . . . . . . 1 Proto ID Catalog 1 | . . . . . 1 . . . . . . . . . . . . . . Fabricator Hacks . | . . . . . . . . . . . . . . . . . . . . Repair Station Hacks . | . . . . . . . . . . . . . . . . . . . . Recycling Unit Hacks . | . . . . . . . . . . . . . . . . . . . . Scanalyzer 11 | . . . . . . . 2 . . . . . . . . . . 9 . Insert Component 2 | . . . . . . . 1 . . . . . . . . . . 1 . Analyze 2 | . . . . . . . 1 . . . . . . . . . . 1 . Retrieve Study 7 | . . . . . . . . . . . . . . . . . . 7 . Garrison Access Hacks 2 | . . . . . . . . 1 . 1 . . . . . . . . . Seal Access 2 | . . . . . . . . 1 . 1 . . . . . . . . . Unauthorized Hacks 10 | . 1 . 1 . . . 2 . 1 . . . . . . . 2 2 1 Terminals 9 | . 1 . 1 . . . 2 . . . . . . . . . 2 2 1 Botnet 9 | . 1 . 1 . . . 2 . . . . . . . . . 2 2 1 Fabricators . | . . . . . . . . . . . . . . . . . . . . Repair Stations . | . . . . . . . . . . . . . . . . . . . . Recycling Units 1 | . . . . . . . . . 1 . . . . . . . . . . Tunnel 1 | . . . . . . . . . 1 . . . . . . . . . . Scanalyzers . | . . . . . . . . . . . . . . . . . . . . Garrison Access . | . . . . . . . . . . . . . . . . . . . . Data Cores Recovered . | . . . . . . . . . . . . . . . . . . . . Used . | . . . . . . . . . . . . . . . . . . . . Hacking Detections 23 | . 1 . 2 . . . 3 3 1 1 . . . . 1 . 2 6 3 Full Trace Events 2 | . . . . . . . . . . . . . . . . . . 2 . Feedback Events . | . . . . . . . . . . . . . . . . . . . . Feedback Blocked 1 | . . . . . . . . . . . . . . . . . . 1 . Robot Schematics Acquired . | . . . . . . . . . . . . . . . . . . . . Robots Built . | . . . . . . . . . . . . . . . . . . . . Authchips . | . . . . . . . . . . . . . . . . . . . . Time . | . . . . . . . . . . . . . . . . . . . . Total Robot Build Rating . | . . . . . . . . . . . . . . . . . . . . Part Schematics Acquired 3 | . 1 . . . . . 1 . . . . . . . . . . 1 . Parts Built . | . . . . . . . . . . . . . . . . . . . . Authchips . | . . . . . . . . . . . . . . . . . . . . Time . | . . . . . . . . . . . . . . . . . . . . Total Part Build Rating . | . . . . . . . . . . . . . . . . . . . . Part Studies Acquired 7 | . . . . . . . . . . . . . . . . . . 7 . Parts Repaired . | . . . . . . . . . . . . . . . . . . . . Time . | . . . . . . . . . . . . . . . . . . . . Parts Recycled . | . . . . . . . . . . . . . . . . . . . . Recycled Matter . | . . . . . . . . . . . . . . . . . . . . Retrieved Matter . | . . . . . . . . . . . . . . . . . . . . Retrieved Components . | . . . . . . . . . . . . . . . . . . . . Parts Scanalyzed 2 | . . . . . . . 1 . . . . . . . . . . 1 . Part Schematics Acquired 2 | . . . . . . . 1 . . . . . . . . . . 1 . Parts Damaged . | . . . . . . . . . . . . . . . . . . . . Bothacking | -11 -10 -10 -9 -9 -9 -8 -8 -7 -6 -5 -5 -5 -5 -4 -4 -4 -3 -2 -1 ------------ Run | Yrd Mat Min Mat Min Exi Min Mat Fac Fac Fac Upp Upp War Pro Fac DSF Res Res Acc Used RIF Installer . | . . . . . . . . . . . . . . . . . . . . Robots Hacked . | . . . . . . . . . . . . . . . . . . . . Non-combat . | . . . . . . . . . . . . . . . . . . . . Combat . | . . . . . . . . . . . . . . . . . . . . Robot Hacks Applied . | . . . . . . . . . . . . . . . . . . . . Relay Couplers Released 1 | . . . . . . . . . . . . . . . . . . 1 . Machine Destruction 1 | . . . . . . . . . . . . . . . . . . 1 . Fabnet Peak Effective % . | . . . . . . . . . . . . . . . . . . . . Robots Rewired 5 | . . . . . . . . . . . . . 5 . . . . . . Allies Hacked . | . . . . . . . . . . . . . . . . . . . . Hacks Repelled . | . . . . . . . . . . . . . . . . . . . . Allies | -11 -10 -10 -9 -9 -9 -8 -8 -7 -6 -5 -5 -5 -5 -4 -4 -4 -3 -2 -1 -------- Run | Yrd Mat Min Mat Min Exi Min Mat Fac Fac Fac Upp Upp War Pro Fac DSF Res Res Acc Total Allies 5 | . . . . . . . . . . . . . 5 . . . . . . Largest Group 5 | . . . . . . . . . . . . . 5 . . . . . . Highest-Rated Group 261 | . . . . . . . . . . . . . 261 . . . . . . Highest-Rated Ally 68 | . . . . . . . . . . . . . 68 . . . . . . Total Orders . | . . . . . . . . . . . . . . . . . . . . Ally Attacks . | . . . . . . . . . . . . . . . . . . . . Total Damage . | . . . . . . . . . . . . . . . . . . . . Kills . | . . . . . . . . . . . . . . . . . . . . Allies Corrupted . | . . . . . . . . . . . . . . . . . . . . Allies Melted . | . . . . . . . . . . . . . . . . . . . . Intel | -11 -10 -10 -9 -9 -9 -8 -8 -7 -6 -5 -5 -5 -5 -4 -4 -4 -3 -2 -1 ------- Run | Yrd Mat Min Mat Min Exi Min Mat Fac Fac Fac Upp Upp War Pro Fac DSF Res Res Acc Active Infowar (turns) 2740 | . . . . . . . 37 . 104 288 253 175 343 176 28 14 422 607 293 Optics 2594 | . . . . . . . . . . 283 253 175 343 176 28 14 422 607 293 Seismic 1161 | . . . . . . . . . 104 258 253 175 343 28 . . . . . Cloaking 653 | . . . . . . . . . . . . 159 343 43 . . . . 108 Jamming 930 | . . . . . . . . . . 17 . . . . . . 411 493 9 ECM 1163 | . . . . . . . 37 . . 79 . . . 118 28 14 407 480 . Robot Analysis Total 2 | . . . . . . . . 1 . . . . . . . . . . 1 Derelict Logs Recovered 2 | . . 1 . . . . . . . . 1 . . . . . . . . Drone Launches . | . . . . . . . . . . . . . . . . . . . . Drone Recoveries . | . . . . . . . . . . . . . . . . . . . . Exploration | -11 -10 -10 -9 -9 -9 -8 -8 -7 -6 -5 -5 -5 -5 -4 -4 -4 -3 -2 -1 ------------- Run | Yrd Mat Min Mat Min Exi Min Mat Fac Fac Fac Upp Upp War Pro Fac DSF Res Res Acc Turns Passed 3867 | 25 96 97 47 78 109 133 303 271 104 288 253 175 343 176 28 14 422 607 298 Spaces Moved 6629 | 24 89 173 77 196 287 244 408 497 166 383 462 361 728 425 63 33 504 1042 467 Core 374 | 24 89 173 77 7 . . . . . . . . . . . . . . 4 Treads . | . . . . . . . . . . . . . . . . . . . . Legs . | . . . . . . . . . . . . . . . . . . . . Wheels 49 | . . . . . . . . . . . . . . . . . . . 49 Hover 22 | . . . . . . . . . . . . . . . . . . . 22 Flight 6184 | . . . . 189 287 244 408 497 166 383 462 361 728 425 63 33 504 1042 392 Fastest Speed 35 | 50 100 50 50 35 35 35 50 50 50 39 39 39 39 39 39 39 39 35 37 Average Speed 42 | 91 100 50 50 35 35 35 50 50 50 39 39 39 39 39 39 39 39 39 45 Slowest Speed 434 | 100 100 50 50 50 35 35 50 50 50 39 39 39 39 39 39 39 39 434 200 Overloaded Moves . | . . . . . . . . . . . . . . . . . . . . Propulsion Burnouts . | . . . . . . . . . . . . . . . . . . . . Robots Hopped 42 | . . . . 1 . 5 1 4 2 3 . . 3 . . . 11 . 12 Potential Cave-ins . | . . . . . . . . . . . . . . . . . . . . Cave-ins Triggered . | . . . . . . . . . . . . . . . . . . . . Exploration Rate (%) 38 | 3 27 30 21 56 71 66 41 16 6 13 67 66 92 61 3 49 19 46 20 Regions Visited 19 Branch Regions 8 Pre-discovered Areas 1 | . . . . . . . . . 1 . . . . . . . . . . Known Exits Taken 6 | . . . . 1 1 1 . . . . 1 . . . 1 . 1 . . Unknown Exits Taken 12 | 1 1 1 1 . . . 1 1 1 1 . 1 1 1 . . . 1 . Scrap Searched 9 | . . . . 2 . . . . . . 1 4 . 2 . . . . . Spaces Dug 26 | . . . . . . . . . . . 16 . . . . . 5 5 . Terrain Destroyed 43 | . . . . . . . . . . . 33 . . . . . 5 5 . Melee 12 | . . . . . . . . . . . 2 . . . . . 5 5 . Projectile . | . . . . . . . . . . . . . . . . . . . . AOE 31 | . . . . . . . . . . . 31 . . . . . . . . Terrain Rammed . | . . . . . . . . . . . . . . . . . . . . Walls Destroyed . | . . . . . . . . . . . . . . . . . . . . Machines Disabled . | . . . . . . . . . . . . . . . . . . . . Actions | -11 -10 -10 -9 -9 -9 -8 -8 -7 -6 -5 -5 -5 -5 -4 -4 -4 -3 -2 -1 --------- Run | Yrd Mat Min Mat Min Exi Min Mat Fac Fac Fac Upp Upp War Pro Fac DSF Res Res Acc Total 7510 | 26 93 180 82 199 298 284 491 509 185 513 521 391 783 431 65 33 694 1190 542 Wait 520 | . 1 3 . . 2 45 55 . 14 103 41 9 . . . . 160 34 53 Move 6533 | 23 88 172 76 193 286 233 405 488 161 376 461 360 722 424 62 32 484 1041 446 Hop 35 | . . . . 1 . 5 1 4 2 3 . . 2 . . . 8 . 9 Pick Up 57 | 2 . . . 1 4 . 7 7 3 6 2 3 . 1 . 1 3 9 8 Fast Attach 51 | 1 1 . 3 2 . . 5 1 . 2 1 5 3 . . . . 19 8 Attach 33 | . 1 . . . . . 1 3 2 1 . 1 . 1 2 . 2 9 10 Detach 14 | . . 1 1 . . . 1 2 . . . . . . . . . 5 4 Swap 28 | . . . . . . . 7 . 1 10 4 1 . 2 1 . . 2 . Drop 57 | . . . . . 6 . 4 1 2 8 2 8 3 . . . . 19 4 Fire 31 | . 2 4 2 2 . 1 5 3 . 4 8 . . . . . . . . Melee 98 | . . . . . . . . . . . 2 4 . 3 . . 37 52 . Ram . | . . . . . . . . . . . . . . . . . . . . Kick . | . . . . . . . . . . . . . . . . . . . . Crush . | . . . . . . . . . . . . . . . . . . . . Escape Stasis . | . . . . . . . . . . . . . . . . . . . . Rewire 53 | . . . . . . . . . . . . . 53 . . . . . . Trap . | . . . . . . . . . . . . . . . . . . . . Miscellaneous . | . . . . . . . . . . . . . . . . . . . . Route ------- -11/Scrapyard -10/Materials -10/Mines -9/Materials -9/Mines -9/Exiles -8/Mines -8/Materials -7/Factory (discovered 3 exits: *Fac / Low x2) -6/Factory -5/Factory -5/Upper Caves -5/Upper Caves (discovered 2 exits: *Fac / *War) -5/Warlord -4/Proximity Caves -4/Factory (discovered 2 exits: Arm / DSF) -4/DSF -3/Research (discovered 3 exits: *Res x3) -2/Research (discovered 2 exits: *Acc / *Tes) -1/Access (discovered 1 exit: Com) History --------- Turn | Location | Event 5 | -11/Scrapyard | Discovered new exit (range 16) 26 | -11/Scrapyard | Entered Materials 112 | -10/Materials | Discovered new exit (range 11) 122 | -10/Materials | Entered Mines 167 | -10/Mines | Learned 4 Materials zone layouts 180 | -10/Mines | Discovered new exit (range 10) 219 | -10/Mines | Entered Materials 219 | -9/Materials | Evolved 2 slots: Propulsion x1, Utility x1 264 | -9/Materials | Discovered new exit (range 5) 266 | -9/Materials | Entered Mines 276 | -9/Mines | Assembled infested the area 281 | -9/Mines | Assisted by a Guerilla fighting off Assembled 315 | -9/Mines | Build established: Mutant 342 | -9/Mines | Deemed a non-threat by the Exiles lab entrance 342 | -9/Mines | Discovered new exit (range 5) 343 | -9/Mines | Identified exit to Exiles 344 | -9/Mines | Entered Exiles 354 | -9/Exiles | Met 8R-AWN 363 | -9/Exiles | Met EX-HEX 372 | -9/Exiles | Met EX-BIN 381 | -9/Exiles | Aligned with FarCom system 382 | -9/Exiles | Given EX-Vault access code 390 | -9/Exiles | Opened EX-Vault 394 | -9/Exiles | Found Flying Fortress v7 402 | -9/Exiles | Warned to stay clear of 0b10 Research branches 412 | -9/Exiles | Met EX-DEC 450 | -9/Exiles | Discovered new exit (range 10) 452 | -9/Exiles | Identified exit to Mines 453 | -9/Exiles | Left Exiles lab with Flying Fortress v7 453 | -9/Exiles | Entered Mines 584 | -8/Mines | Discovered new exit (range 6) 585 | -8/Mines | Identified exit to Materials 586 | -8/Mines | Entered Materials 586 | -8/Materials | Evolved 2 slots: Propulsion x1, Utility x1 872 | -8/Materials | Discovered new exit (range 15) 889 | -8/Materials | Entered Factory 889 | -7/Factory | Evolved 2 slots: Power x1, Utility x1 1117 | -7/Factory | Discovered new exit (range 9) 1145 | -7/Factory | Identified exit to Lower Caves 1160 | -7/Factory | Entered another Factory area 1160 | -6/Factory | Evolved 2 slots: Utility x2 1232 | -6/Factory | Discovered new exit (range 15) 1264 | -6/Factory | Entered another Factory area 1264 | -5/Factory | Evolved 2 slots: Propulsion x1, Utility x1 1542 | -5/Factory | Discovered new exit (range 7) 1552 | -5/Factory | Entered Upper Caves 1582 | -5/Upper Caves | Identified exit to Upper Caves 1705 | -5/Upper Caves | Spotted B-75 Beast 1805 | -5/Upper Caves | Entered another Upper Caves area 1816 | -5/Upper Caves | Discovered new exit (range 13) 1860 | -5/Upper Caves | Found DCF Scrap (11 items) 1911 | -5/Upper Caves | Encountered a Warlord checkpoint 1961 | -5/Upper Caves | Discovered new exit (range 8) 1964 | -5/Upper Caves | Attracted the attention of an 0b10 checkpoint 1980 | -5/Upper Caves | Entered Warlord 2086 | -5/Warlord | Learned Armory emergency access door positions 2086 | -5/Warlord | Learned Armory stockpile data 2087 | -5/Warlord | Learned Armory security intel 2087 | -5/Warlord | Learned Research security intel 2087 | -5/Warlord | Learned Armory scanalyzer intel 2087 | -5/Warlord | Learned Research scanalyzer intel 2087 | -5/Warlord | Learned 4 Research zone layouts 2087 | -5/Warlord | Learned 4 Access zone layouts 2087 | -5/Warlord | Learned 4 Quarantine zone layouts 2199 | -5/Warlord | Received a Watcher feed algorithm from an ecstatic Tinkerer 2199 | -5/Warlord | Ran a Watcher feed algorithm 2216 | -5/Warlord | Visited the Vortex Lab 2218 | -5/Warlord | Found Prototype Energy Gun 2218 | -5/Warlord | Identified Vortex Shotgun 2220 | -5/Warlord | Found Prototype Energy Cannon 2220 | -5/Warlord | Identified Vortex Cannon 2237 | -5/Warlord | Warlord's base attacked by MAIN.C 2256 | -5/Warlord | Met Warlord 2319 | -5/Warlord | Discovered new exit (range 12) 2323 | -5/Warlord | Entered Proximity Caves 2357 | -4/Proximity Caves | Ambushed by research squad 2496 | -4/Proximity Caves | Discovered new exit (range 7) 2499 | -4/Proximity Caves | Entered Factory 2499 | -4/Factory | Evolved 2 slots: Utility x1, Weapon x1 2500 | -4/Factory | Identified exit to Armory 2511 | -4/Factory | Identified exit to DSF 2527 | -4/Factory | Entered DSF 2531 | -4/DSF | Discovered new exit (range 22) 2541 | -4/DSF | Entered Research 2541 | -3/Research | Evolved 2 slots: Utility x2 2542 | -3/Research | Identified exit to Research 2544 | -3/Research | Loaded intel: 6 scanalyzer locations 2810 | -3/Research | Build established: Derelict-Gladiator 2963 | -3/Research | Entered another Research area 2963 | -2/Research | Warlord forces began assault on 0b10 2963 | -2/Research | Evolved 2 slots: Propulsion x1, Utility x1 3073 | -2/Research | Research machine network offline 3101 | -2/Research | Spotted B-90 Cyclops 3143 | -2/Research | Borebot progress halted 3144 | -2/Research | Met up with Warlord 3235 | -2/Research | Spotted B-90 Cyclops 3296 | -2/Research | Build established: Hacker-Gladiator 3362 | -2/Research | Borebot progress halted 3396 | -2/Research | Found Prototype Device 3396 | -2/Research | Identified Adv. EM Shield 3481 | -2/Research | Lost 7 parts (2p1n3u1w) 3497 | -2/Research | Discovered new exit (range 9) 3500 | -2/Research | Identified exit to Testing 3509 | -2/Research | Borebot progress halted 3513 | -2/Research | Spotted Executioner 3513 | -2/Research | Spotted Striker 3513 | -2/Research | Spotted Striker 3555 | -2/Research | Spotted B-90 Cyclops 3558 | -2/Research | Discovered new exit (range 20) 3569 | -2/Research | Core integrity fell below 50% 3570 | -2/Research | Entered Access 3570 | -1/Access | Evolved 2 slots: Utility x2 3588 | -1/Access | Lost 10 parts (5n3u2w) 3676 | -1/Access | Found Prototype Processor 3676 | -1/Access | Identified Exp. Terrain Scan Processor 3683 | -1/Access | Identified exit to Command 3692 | -1/Access | Spotted B-99 Colossus 3739 | -1/Access | Lost 6 parts (1p2n3u) 3807 | -1/Access | Build established: Hacker-Mutant 3814 | -1/Access | Lost 7 parts (4n3u) 3860 | -1/Access | Core integrity fell below 50% 3863 | -1/Access | Spotted B-99 Colossus 3863 | -1/Access | Spotted B-99 Colossus 3864 | -1/Access | Spotted B-99 Colossus 3867 | -1/Access | Core integrity fell below 20% 3868 | -1/Access | Destroyed by Y-72 Warden with Quantum Rifle Last Messages --------------- 03864_ Penetrated by Slug. 03865_ K-01 Serf collects debris. 03866_ Slug penetrates Sealed Heavy Doors. 03866_ Penetrated by Slug. 03867_ Adv. Heavy Siege Treads destroyed. 03867_ Mak. System Shield destroyed. 03867_ Knocked back. 03867_ Penetrated by Slug. 03867_ Slug penetrates B-99 Colossus. 03867_ Penetrated by Slug. 03867_ Slug penetrates B-99 Colossus. 03867_ Knocked back. 03867_ Penetrated by Slug. 03867_ Slug penetrates Sealed Heavy Doors. 03867_ Slug penetrates B-99 Colossus. 03867_ Slug penetrates H-88 Terminator. 03867_ Slug penetrates Wall. 03867_ Penetrated by Slug. 03867_ Slug penetrates Wall. 03867_ Penetrated by Slug. Map ----- +----------------------------------------------------+ | #???????+ +??????????????????????????????????# | | #???????# #???##?????????????????????????????# | | #???????# #?? ?????????????################## | | ##?????## ##? ??????????????# ! """T""" + | | ####### # ??????????????# """ """ # | | # ???????????????# # | | % /????????????????# ! # | | #????????????????# # | | ####### #????????????????# # | | ########### ##????????????????# + | | ?# ########??????????# # | | # # #??????????# # | | """"" + # #??????????###############+## | | """"" #% # #????????????????????????# # | | """"" # # #????????????????????????# # | | ?""""" # %# #######??????????????????# # | | ?""""" ?# # ## BB#??????????????????# # | | ?""""" ??# # "# BB#??????????????????# #! | | ? ???# # ## ???????????????????# # | | ! ???# / ## #???????????????????# # | | ????# # ## #???????????????????# ## | | #####?????#!*p# % %## #???????????????????# #? | | ?????????## ######### #???????????????????# #? | | ?????????# ######## h #???????????????????# #? | | ?????????# ug " %%"???????????????????# #? | | ?????????# Hgkp % @"???????????????????# #? | | ?????????# Y " % "??????????????????## ## | | ?????????# #### #; h%#???>??????????????# | | ?????????#######??# ## #??????????????????# | | ??????????????????# w## #??????????????????# | | ??????????????????# ## #?????????????#######+## | | ??????????????????# ## #?????????????# | | ??????????????????# ## ?????????????# ! | | ??????????????????# ## BB#????????????# " | | ??????????????????# ## BB#????????????# """ " | | ??????????????????# ##;####????????????# """ | | ??????????????????# ##;????????????????# " | | ??????????????????# #BB????????????????# | | ??????????????????# #BB????????????????# | | ??????????????????# ????????????????########## | | ??????????????????# ?????????????????????????? | | ??????????????????# ???????????????????????????? | | ??????????????????# ???????????????????????????? | | ??????????????????? ???????????????????????????? | | ??????????????????? ???????????????????????????? | | ??????????????????? ???????????????????????????? | | ??????????????????? ???????????????????????????? | | ?????????????????????????????????????????????????? | | ?????????????????????????????????????????????????? | | ?????????????????????????????????????????????????? | +----------------------------------------------------+ Best States ------------- Heat Dissipation 68 Energy Generation 38 Energy Capacity 510 Matter Stores 300 Matter Capacity 300 Sight Range 22 Terrain Scan Density 1010 ECM Strength 1 Jamming Range 16 Cloak Strength 4 Corruption Block 20 Armor Coverage 225 Propulsion Shielding 66 Melee Speed Boost 20 Evasion (%) 75 Targeting Accuracy 10 Melee Accuracy 8 Offensive Hacking 24 Defensive Hacking 43 Item Schematics ----------------- Flight Unit | -10/Materials | Hacked VTOL Module | -8/Materials | Scanalyzed Impulse Thruster | -2/Research | Scanalyzed Robot Schematics ------------------ None Fabricated ------------ Nothing Repaired ---------- Nothing Studied --------- Fission Core | -2/Research | Hacked Angular Momentum Engine | -2/Research | Hacked VTOL Module | -2/Research | Hacked Lgt. Particle Reactor | -2/Research | Hacked Nuclear Pulse Thruster | -2/Research | Hacked Impulse Thruster | -2/Research | Hacked Field Propulsion Drive | -2/Research | Hacked Alien Tech Used ----------------- None Achievements -------------- All-out Warlord Deadly Force Challenges ------------ None Game ------ Seed DoorRecoilRay Manual? 0 Play Time 01:33:39 Cumulative 169.8 hours Start 2026.06.25 @ 17:54:07 End 2026.06.25 @ 21:47:46 Sessions 5 Manual Loads 0 Difficulty Rogue Special Mode None Game No. 229 Rogue 229 Adventurer 0 Explorer 0 Win Type - Total 2 Types 2/0/0/0/0/0/0/0/0/0 Lore% 74 Gallery% 55 Achievement% 42 Wizard Run 0 Options --------- Layout 0 ASCII 0 Keyboard 0 Movement Numpad Keybinds 0 Fullscreen 1 Font 18/Terminus Map View 76x50 Zoom Use 0% Tactical HUD 1 Map Filters NONE Filters NONE Steam 1 RUN: eaf32c40-7643-4278-b645-94f2ac4b318a